[Event "*** Titled Tuesday Blitz"]
[Site "Chess.com"]
[Date "2021.03.09"]
[Round "4"]
[White "Semen_Khanin"]
[Black "Duhless"]
[Result "1/2-1/2"]
[WhiteElo "2840"]
[BlackElo "3017"]
[TimeControl "180+1"]
[EndTime "10:43:39 PST"]
[Termination "Game drawn by repetition"]

1. e4 {[%clk 0:03:00.9]} 1... c5 {[%clk 0:02:59.9]} 2. Nf3 {[%clk 0:03:00.8]}
2... d6 {[%clk 0:02:59.4]} 3. d4 {[%clk 0:03:00.2]} 3... cxd4 {[%clk 0:03:00.3]}
4. Nxd4 {[%clk 0:03:01]} 4... Nf6 {[%clk 0:03:00.8]} 5. Nc3 {[%clk 0:03:01.7]}
5... Nc6 {[%clk 0:03:01.4]} 6. Bg5 {[%clk 0:03:00]} 6... g6 {[%clk 0:03:01.9]}
7. Bxf6 {[%clk 0:02:57.7]} 7... exf6 {[%clk 0:03:02.8]} 8. Bc4 {[%clk
0:02:54.3]} 8... Bg7 {[%clk 0:03:02.2]} 9. Bb3 {[%clk 0:02:49.9]} 9... O-O
{[%clk 0:03:01.5]} 10. Nde2 {[%clk 0:02:49.7]} 10... f5 {[%clk 0:03:01.1]} 11.
exf5 {[%clk 0:02:46.5]} 11... Bxf5 {[%clk 0:03:02]} 12. O-O {[%clk 0:02:46.6]}
12... Rc8 {[%clk 0:03:01.6]} 13. Qd2 {[%clk 0:02:41.8]} 13... Ne5 {[%clk
0:02:54.9]} 14. Rad1 {[%clk 0:02:41.5]} 14... Nc4 {[%clk 0:02:49.1]} 15. Bxc4
{[%clk 0:02:30.7]} 15... Rxc4 {[%clk 0:02:50]} 16. Qd5 {[%clk 0:02:08.4]} 16...
Rc7 {[%clk 0:02:34.8]} 17. Nd4 {[%clk 0:02:05.5]} 17... Bg4 {[%clk 0:02:32.4]}
18. Rd3 {[%clk 0:01:57.5]} 18... a6 {[%clk 0:02:31.2]} 19. h3 {[%clk 0:01:57.1]}
19... Bc8 {[%clk 0:02:30.4]} 20. Re1 {[%clk 0:01:47.2]} 20... Rc5 {[%clk
0:02:13.9]} 21. Qf3 {[%clk 0:01:47]} 21... Re5 {[%clk 0:02:10]} 22. Rxe5 {[%clk
0:01:37.7]} 22... Bxe5 {[%clk 0:02:10.9]} 23. Nd5 {[%clk 0:01:37.3]} 23... Kg7
{[%clk 0:02:06.2]} 24. c3 {[%clk 0:01:36.1]} 24... Be6 {[%clk 0:02:00.4]} 25.
Rd1 {[%clk 0:01:33.8]} 25... Qa5 {[%clk 0:01:54.5]} 26. Ne3 {[%clk 0:01:06.3]}
26... Bc8 {[%clk 0:01:42.6]} 27. a3 {[%clk 0:01:04.3]} 27... Re8 {[%clk
0:01:40.8]} 28. Nd5 {[%clk 0:00:51]} 28... h5 {[%clk 0:01:31]} 29. Ne3 {[%clk
0:00:44.6]} 29... Qb6 {[%clk 0:01:26.5]} 30. b4 {[%clk 0:00:41.6]} 30... Qd8
{[%clk 0:01:05.5]} 31. c4 {[%clk 0:00:37.5]} 31... Qh4 {[%clk 0:00:56.7]} 32.
Qd5 {[%clk 0:00:27.5]} 32... Qf4 {[%clk 0:00:47.2]} 33. Nf3 {[%clk 0:00:27.6]}
33... Bb2 {[%clk 0:00:36.3]} 34. a4 {[%clk 0:00:25]} 34... Be5 {[%clk
0:00:21.3]} 35. b5 {[%clk 0:00:18.8]} 35... axb5 {[%clk 0:00:18.8]} 36. axb5
{[%clk 0:00:19]} 36... Qf6 {[%clk 0:00:10.3]} 37. b6 {[%clk 0:00:15.7]} 37...
Bf4 {[%clk 0:00:10]} 38. Qd4 {[%clk 0:00:08.1]} 38... Qxd4 {[%clk 0:00:08.7]}
39. Nxd4 {[%clk 0:00:07.3]} 39... Bxe3 {[%clk 0:00:09.1]} 40. fxe3 {[%clk
0:00:07.7]} 40... Bd7 {[%clk 0:00:07.4]} 41. Nb3 {[%clk 0:00:04.6]} 41... Ba4
{[%clk 0:00:06.9]} 42. Rd3 {[%clk 0:00:03.8]} 42... Bxb3 {[%clk 0:00:06.4]} 43.
Rxb3 {[%clk 0:00:04.1]} 43... Rc8 {[%clk 0:00:06]} 44. Rd3 {[%clk 0:00:03.8]}
44... Rc6 {[%clk 0:00:05.7]} 45. Rb3 {[%clk 0:00:02.3]} 45... Rxc4 {[%clk
0:00:05.5]} 46. Kf2 {[%clk 0:00:03.2]} 46... Rc6 {[%clk 0:00:05.2]} 47. Kf3
{[%clk 0:00:03.4]} 47... Kf6 {[%clk 0:00:05.8]} 48. Ke4 {[%clk 0:00:03.9]} 48...
Ke6 {[%clk 0:00:06.1]} 49. Kd4 {[%clk 0:00:04.2]} 49... d5 {[%clk 0:00:06.2]}
50. Rb4 {[%clk 0:00:04.3]} 50... Kd6 {[%clk 0:00:04.8]} 51. e4 {[%clk
0:00:04.8]} 51... Rc4+ {[%clk 0:00:03.8]} 52. Rxc4 {[%clk 0:00:04.6]} 52... dxc4
{[%clk 0:00:04.7]} 53. Kxc4 {[%clk 0:00:04.5]} 53... Kc6 {[%clk 0:00:05.2]} 54.
Kd4 {[%clk 0:00:05]} 54... Kxb6 {[%clk 0:00:05.3]} 55. Ke5 {[%clk 0:00:05.5]}
55... Kc6 {[%clk 0:00:05.5]} 56. Kf6 {[%clk 0:00:05.9]} 56... Kd6 {[%clk
0:00:04.9]} 57. e5+ {[%clk 0:00:04.1]} 57... Kd5 {[%clk 0:00:04.9]} 58. g4
{[%clk 0:00:02.4]} 58... hxg4 {[%clk 0:00:04.3]} 59. hxg4 {[%clk 0:00:02.9]}
59... g5 {[%clk 0:00:04.3]} 60. e6 {[%clk 0:00:01.2]} 60... fxe6 {[%clk
0:00:03.9]} 61. Kxg5 {[%clk 0:00:02.1]} 61... b5 {[%clk 0:00:04]} 62. Kf6 {[%clk
0:00:02.5]} 62... b4 {[%clk 0:00:03.8]} 63. g5 {[%clk 0:00:03.4]} 63... b3
{[%clk 0:00:04.2]} 64. g6 {[%clk 0:00:04.3]} 64... b2 {[%clk 0:00:04.6]} 65. g7
{[%clk 0:00:05.2]} 65... b1=Q {[%clk 0:00:04.9]} 66. g8=Q {[%clk 0:00:06.1]}
66... Qb2+ {[%clk 0:00:04.3]} 67. Ke7 {[%clk 0:00:06.1]} 67... Qa3+ {[%clk
0:00:03.6]} 68. Kf6 {[%clk 0:00:06.2]} 68... Qc3+ {[%clk 0:00:03.3]} 69. Ke7
{[%clk 0:00:06.4]} 69... Qc7+ {[%clk 0:00:03.1]} 70. Kf6 {[%clk 0:00:06.8]}
70... Qf4+ {[%clk 0:00:03.2]} 71. Ke7 {[%clk 0:00:06.8]} 71... Qh4+ {[%clk
0:00:03.3]} 72. Kd7 {[%clk 0:00:06.8]} 72... Qa4+ {[%clk 0:00:03.5]} 73. Ke7
{[%clk 0:00:07]} 73... Qa7+ {[%clk 0:00:03.6]} 74. Kf6 {[%clk 0:00:07.3]} 74...
Qd4+ {[%clk 0:00:04.1]} 75. Ke7 {[%clk 0:00:07.7]} 75... Qb4+ {[%clk 0:00:03.8]}
76. Kf6 {[%clk 0:00:08]} 76... Qf4+ {[%clk 0:00:03.2]} 77. Ke7 {[%clk
0:00:08.2]} 77... Qd6+ {[%clk 0:00:04.1]} 78. Kf6 {[%clk 0:00:08.1]} 78... Qf4+
{[%clk 0:00:03]} 1/2-1/2

[Event "*** Titled Tuesday Blitz"]
[Site "Chess.com"]
[Date "2021.03.09"]
[Round "4"]
[White "konradrutkowski"]
[Black "kirillshevchenko"]
[Result "0-1"]
[WhiteElo "2381"]
[BlackElo "2824"]
[TimeControl "180+1"]
[EndTime "10:43:42 PST"]
[Termination "kirillshevchenko won on time"]

1. d4 {[%clk 0:02:59.1]} 1... Nf6 {[%clk 0:02:58.4]} 2. Nf3 {[%clk 0:02:58.6]}
2... g6 {[%clk 0:02:58.5]} 3. g3 {[%clk 0:02:51.8]} 3... Bg7 {[%clk 0:02:58.1]}
4. Bg2 {[%clk 0:02:52.5]} 4... O-O {[%clk 0:02:58.7]} 5. O-O {[%clk 0:02:53.1]}
5... d6 {[%clk 0:02:59.3]} 6. Nc3 {[%clk 0:02:52.3]} 6... Nbd7 {[%clk
0:02:59.9]} 7. e4 {[%clk 0:02:51.8]} 7... e5 {[%clk 0:03:00.3]} 8. Re1 {[%clk
0:02:49.8]} 8... c6 {[%clk 0:02:59]} 9. a4 {[%clk 0:02:39.3]} 9... a5 {[%clk
0:02:49.5]} 10. h3 {[%clk 0:02:38.1]} 10... Re8 {[%clk 0:02:47.4]} 11. b3 {[%clk
0:02:29.1]} 11... Qc7 {[%clk 0:02:13.2]} 12. Bb2 {[%clk 0:02:19.1]} 12... exd4
{[%clk 0:02:11.8]} 13. Nxd4 {[%clk 0:02:17.8]} 13... Nc5 {[%clk 0:02:12.3]} 14.
Qd2 {[%clk 0:02:09.8]} 14... Bd7 {[%clk 0:02:08.2]} 15. Rad1 {[%clk 0:02:10]}
15... Rad8 {[%clk 0:02:08.4]} 16. Qf4 {[%clk 0:01:47]} 16... Nh5 {[%clk
0:02:02.2]} 17. Qd2 {[%clk 0:01:40.8]} 17... Bc8 {[%clk 0:01:59.8]} 18. Nde2
{[%clk 0:01:20.6]} 18... Nf6 {[%clk 0:01:48.2]} 19. Nf4 {[%clk 0:01:12.3]} 19...
h5 {[%clk 0:01:41.8]} 20. Ba1 {[%clk 0:00:59.5]} 20... Nh7 {[%clk 0:01:35.5]}
21. Nd3 {[%clk 0:00:56.9]} 21... Nxd3 {[%clk 0:01:20.2]} 22. Qxd3 {[%clk
0:00:57.8]} 22... Ng5 {[%clk 0:01:13.5]} 23. Kh2 {[%clk 0:00:51.8]} 23... Qb6
{[%clk 0:01:11.6]} 24. f4 {[%clk 0:00:48]} 24... Ne6 {[%clk 0:01:01.6]} 25. Rf1
{[%clk 0:00:20.5]} 25... Nc5 {[%clk 0:00:49.7]} 26. Qf3 {[%clk 0:00:18.9]} 26...
f5 {[%clk 0:00:44.4]} 27. exf5 {[%clk 0:00:18.8]} 27... Bxf5 {[%clk 0:00:43.4]}
28. Rd2 {[%clk 0:00:17.9]} 28... Ne4 {[%clk 0:00:40.3]} 29. Nxe4 {[%clk
0:00:15.9]} 29... Bxe4 {[%clk 0:00:41.2]} 30. Qf2 {[%clk 0:00:16.1]} 30... Qxf2
{[%clk 0:00:37.8]} 31. Rdxf2 {[%clk 0:00:17]} 31... Bf5 {[%clk 0:00:32.1]} 32.
Bxg7 {[%clk 0:00:16.2]} 32... Kxg7 {[%clk 0:00:33]} 33. Rd1 {[%clk 0:00:16.2]}
33... d5 {[%clk 0:00:32.2]} 34. Bf3 {[%clk 0:00:16.2]} 34... Re3 {[%clk
0:00:32.3]} 35. g4 {[%clk 0:00:16.2]} 35... hxg4 {[%clk 0:00:31.9]} 36. hxg4
{[%clk 0:00:17.1]} 36... Bxc2 {[%clk 0:00:29.7]} 37. Rxc2 {[%clk 0:00:14.1]}
37... Rxf3 {[%clk 0:00:30.1]} 38. Re1 {[%clk 0:00:14.1]} 38... Rxf4 {[%clk
0:00:29.7]} 39. Re7+ {[%clk 0:00:14.7]} 39... Rf7 {[%clk 0:00:29.6]} 40. Rce2
{[%clk 0:00:13.9]} 40... Rf8 {[%clk 0:00:30]} 41. g5 {[%clk 0:00:12.2]} 41...
Rxe7 {[%clk 0:00:30.2]} 42. Rxe7+ {[%clk 0:00:12.2]} 42... Rf7 {[%clk
0:00:30.9]} 43. Re8 {[%clk 0:00:08.9]} 43... Rd7 {[%clk 0:00:30.2]} 44. Kg3
{[%clk 0:00:08.3]} 44... d4 {[%clk 0:00:30.7]} 45. Kf2 {[%clk 0:00:07.5]} 45...
Kf7 {[%clk 0:00:30.8]} 46. Ra8 {[%clk 0:00:04.6]} 46... Ke6 {[%clk 0:00:30.7]}
47. Rxa5 {[%clk 0:00:03.8]} 47... d3 {[%clk 0:00:31.3]} 48. Ke1 {[%clk
0:00:03.9]} 48... Rd5 {[%clk 0:00:32.2]} 49. Ra7 {[%clk 0:00:02.8]} 49... b5
{[%clk 0:00:32.2]} 50. a5 {[%clk 0:00:01.9]} 50... b4 {[%clk 0:00:31.5]} 51. Kd2
{[%clk 0:00:02.3]} 51... Kf5 {[%clk 0:00:29.6]} 52. a6 {[%clk 0:00:02.7]} 52...
Kxg5 {[%clk 0:00:28.9]} 53. Rb7 {[%clk 0:00:02.3]} 53... Ra5 {[%clk 0:00:26.3]}
54. a7 {[%clk 0:00:02.5]} 54... Kg4 {[%clk 0:00:17.6]} 55. Kxd3 {[%clk
0:00:02.8]} 55... g5 {[%clk 0:00:18.3]} 56. Kc4 {[%clk 0:00:03.4]} 56... c5
{[%clk 0:00:18.9]} 57. Kd5 {[%clk 0:00:01.5]} 57... Kf3 {[%clk 0:00:19.5]} 58.
Kc4 {[%clk 0:00:02.4]} 58... g4 {[%clk 0:00:19.6]} 59. Rf7+ {[%clk 0:00:03.3]}
59... Kg2 {[%clk 0:00:19.7]} 60. Kd5 {[%clk 0:00:03.6]} 60... g3 {[%clk
0:00:19.8]} 61. Kc6 {[%clk 0:00:04.1]} 61... c4 {[%clk 0:00:19.7]} 62. Kb6
{[%clk 0:00:05]} 62... Ra1 {[%clk 0:00:14.3]} 63. bxc4 {[%clk 0:00:04.2]} 63...
b3 {[%clk 0:00:14.6]} 64. Rf5 {[%clk 0:00:04.1]} 64... Kh3 {[%clk 0:00:12.1]}
65. Rb5 {[%clk 0:00:05]} 65... Ra3 {[%clk 0:00:10.3]} 66. Kb7 {[%clk 0:00:04.9]}
66... g2 {[%clk 0:00:09.2]} 67. a8=Q {[%clk 0:00:05.2]} 67... Rxa8 {[%clk
0:00:09.3]} 68. Kxa8 {[%clk 0:00:06.1]} 68... g1=Q {[%clk 0:00:09.1]} 69. Rxb3+
{[%clk 0:00:07]} 69... Kg4 {[%clk 0:00:09.4]} 70. Kb7 {[%clk 0:00:06.6]} 70...
Qc5 {[%clk 0:00:09.3]} 71. Rb6 {[%clk 0:00:04.4]} 71... Qxc4 {[%clk 0:00:09.1]}
72. Rc6 {[%clk 0:00:05.1]} 72... Qd5 {[%clk 0:00:08.7]} 73. Kc7 {[%clk 0:00:06]}
73... Kf5 {[%clk 0:00:09.1]} 74. Kb7 {[%clk 0:00:05.3]} 74... Ke5 {[%clk
0:00:08.9]} 75. Kc7 {[%clk 0:00:05.6]} 75... Qa5+ {[%clk 0:00:08.9]} 76. Kb7
{[%clk 0:00:05.6]} 76... Kd5 {[%clk 0:00:09.4]} 77. Rb6 {[%clk 0:00:04.9]} 77...
Qa4 {[%clk 0:00:09.8]} 78. Kc7 {[%clk 0:00:04.6]} 78... Qc4+ {[%clk 0:00:08.5]}
79. Kb7 {[%clk 0:00:04.7]} 79... Qe4 {[%clk 0:00:08.4]} 80. Kc7 {[%clk 0:00:04]}
80... Kc5 {[%clk 0:00:07.3]} 81. Rd6 {[%clk 0:00:01.5]} 81... Qe5 {[%clk
0:00:06.7]} 0-1

[Event "*** Titled Tuesday Blitz"]
[Site "Chess.com"]
[Date "2021.03.09"]
[Round "4"]
[White "dbrankovic68"]
[Black "AungTZ"]
[Result "0-1"]
[WhiteElo "2454"]
[BlackElo "2205"]
[TimeControl "180+1"]
[EndTime "10:43:45 PST"]
[Termination "AungTZ won by checkmate"]

1. e4 {[%clk 0:03:00.9]} 1... c5 {[%clk 0:02:59.4]} 2. Nf3 {[%clk 0:03:00.9]}
2... Nc6 {[%clk 0:02:59.9]} 3. Bb5 {[%clk 0:02:59.5]} 3... e6 {[%clk 0:02:59.2]}
4. Bxc6 {[%clk 0:02:58.3]} 4... bxc6 {[%clk 0:02:58.9]} 5. O-O {[%clk
0:02:58.8]} 5... d6 {[%clk 0:02:59.5]} 6. c3 {[%clk 0:02:57.4]} 6... e5 {[%clk
0:02:59.7]} 7. d4 {[%clk 0:02:57.2]} 7... cxd4 {[%clk 0:02:59.9]} 8. cxd4 {[%clk
0:02:57.8]} 8... Qc7 {[%clk 0:03:00.4]} 9. dxe5 {[%clk 0:02:56.5]} 9... dxe5
{[%clk 0:02:59.7]} 10. Be3 {[%clk 0:02:52.5]} 10... Nf6 {[%clk 0:02:59.1]} 11.
Nc3 {[%clk 0:02:52.3]} 11... Be7 {[%clk 0:02:58.5]} 12. h3 {[%clk 0:02:52.6]}
12... O-O {[%clk 0:02:57.6]} 13. Rc1 {[%clk 0:02:52.9]} 13... Rd8 {[%clk
0:02:54.3]} 14. Qa4 {[%clk 0:02:51.8]} 14... Bd7 {[%clk 0:02:49.7]} 15. Qc4
{[%clk 0:02:32]} 15... Be8 {[%clk 0:02:44.8]} 16. Nd5 {[%clk 0:02:21.6]} 16...
Nxd5 {[%clk 0:02:29.9]} 17. exd5 {[%clk 0:02:21.5]} 17... Rac8 {[%clk
0:02:26.6]} 18. Rfd1 {[%clk 0:02:18.2]} 18... Qb7 {[%clk 0:01:40.3]} 19. Nxe5
{[%clk 0:01:47.1]} 19... cxd5 {[%clk 0:01:37]} 20. Qd4 {[%clk 0:01:42.1]} 20...
Rxc1 {[%clk 0:01:29.7]} 21. Rxc1 {[%clk 0:01:41.4]} 21... Bf6 {[%clk 0:01:30.2]}
22. f4 {[%clk 0:01:38.6]} 22... h6 {[%clk 0:01:23.5]} 23. b3 {[%clk 0:01:36.4]}
23... a5 {[%clk 0:01:21.8]} 24. Qc5 {[%clk 0:01:29.2]} 24... a4 {[%clk
0:01:17.3]} 25. bxa4 {[%clk 0:01:21.4]} 25... Bxa4 {[%clk 0:01:16.1]} 26. Bd4
{[%clk 0:01:21.4]} 26... Bxe5 {[%clk 0:01:06.9]} 27. Bxe5 {[%clk 0:01:17.1]}
27... Bd7 {[%clk 0:01:07.3]} 28. Qf2 {[%clk 0:00:54.9]} 28... Bf5 {[%clk
0:01:01.5]} 29. Qg3 {[%clk 0:00:51.2]} 29... Qb6+ {[%clk 0:00:54.1]} 30. Kh2
{[%clk 0:00:49.6]} 30... Qg6 {[%clk 0:00:54.6]} 31. a4 {[%clk 0:00:38.9]} 31...
Qxg3+ {[%clk 0:00:50.8]} 32. Kxg3 {[%clk 0:00:38.2]} 32... Ra8 {[%clk
0:00:51.7]} 33. Ra1 {[%clk 0:00:36.1]} 33... Ra5 {[%clk 0:00:51]} 34. Bc7 {[%clk
0:00:32.2]} 34... Rc5 {[%clk 0:00:50.4]} 35. Bb6 {[%clk 0:00:31.3]} 35... Rc2
{[%clk 0:00:48.5]} 36. Rf1 {[%clk 0:00:20.6]} 36... Ra2 {[%clk 0:00:44.9]} 37.
a5 {[%clk 0:00:19.9]} 37... Be4 {[%clk 0:00:43.6]} 38. Rf2 {[%clk 0:00:20.5]}
38... Ra3+ {[%clk 0:00:42.7]} 39. Kh2 {[%clk 0:00:20.9]} 39... Ra4 {[%clk
0:00:40.3]} 40. h4 {[%clk 0:00:21.1]} 40... f5 {[%clk 0:00:39.4]} 41. Rd2 {[%clk
0:00:20.4]} 41... Kf7 {[%clk 0:00:37]} 42. Kg3 {[%clk 0:00:20.6]} 42... Ra3+
{[%clk 0:00:35.4]} 43. Kf2 {[%clk 0:00:20.9]} 43... Ke6 {[%clk 0:00:34.7]} 44.
Rb2 {[%clk 0:00:21]} 44... Kd7 {[%clk 0:00:34.3]} 45. Bd4 {[%clk 0:00:20.8]}
45... Rxa5 {[%clk 0:00:32.9]} 46. Bxg7 {[%clk 0:00:20.6]} 46... h5 {[%clk
0:00:32.8]} 47. Be5 {[%clk 0:00:20.4]} 47... Kc6 {[%clk 0:00:30.4]} 48. Ke3
{[%clk 0:00:20]} 48... Ra3+ {[%clk 0:00:30.1]} 49. Kf2 {[%clk 0:00:18.9]} 49...
Kc5 {[%clk 0:00:29.1]} 50. Rd2 {[%clk 0:00:17.6]} 50... Ra4 {[%clk 0:00:26.6]}
51. Bf6 {[%clk 0:00:16.9]} 51... d4 {[%clk 0:00:26.6]} 52. g3 {[%clk 0:00:15.7]}
52... Kd5 {[%clk 0:00:24.4]} 53. Bg7 {[%clk 0:00:15.3]} 53... d3 {[%clk
0:00:24.3]} 54. Ke3 {[%clk 0:00:14.6]} 54... Rc4 {[%clk 0:00:22]} 55. Rb2 {[%clk
0:00:14.4]} 55... Rc1 {[%clk 0:00:21.9]} 56. Rb5+ {[%clk 0:00:14.4]} 56... Kc4
{[%clk 0:00:22.1]} 57. Rb8 {[%clk 0:00:12.9]} 57... Re1+ {[%clk 0:00:21.9]} 58.
Kd2 {[%clk 0:00:13.1]} 58... Re2+ {[%clk 0:00:21.8]} 59. Kd1 {[%clk 0:00:13.6]}
59... Rg2 {[%clk 0:00:20.7]} 60. Rc8+ {[%clk 0:00:13.8]} 60... Kd5 {[%clk
0:00:19.8]} 61. Rd8+ {[%clk 0:00:14]} 61... Ke6 {[%clk 0:00:19.6]} 62. Be5
{[%clk 0:00:13.8]} 62... Rxg3 {[%clk 0:00:19.1]} 63. Rd6+ {[%clk 0:00:14.1]}
63... Ke7 {[%clk 0:00:17.7]} 64. Rh6 {[%clk 0:00:12.4]} 64... Rg2 {[%clk
0:00:16.2]} 65. Bc3 {[%clk 0:00:11.9]} 65... Rh2 {[%clk 0:00:14.3]} 66. Bd2
{[%clk 0:00:10.3]} 66... Rxh4 {[%clk 0:00:12.9]} 67. Kc1 {[%clk 0:00:10.8]}
67... Rh1+ {[%clk 0:00:12.8]} 68. Kb2 {[%clk 0:00:10.9]} 68... h4 {[%clk
0:00:13.3]} 69. Kc3 {[%clk 0:00:10.9]} 69... h3 {[%clk 0:00:13.1]} 70. Kd4
{[%clk 0:00:11.3]} 70... Kf7 {[%clk 0:00:12.6]} 71. Ke5 {[%clk 0:00:11.3]} 71...
h2 {[%clk 0:00:11.9]} 72. Bc3 {[%clk 0:00:09.7]} 72... Rc1 {[%clk 0:00:10.3]}
73. Rh7+ {[%clk 0:00:09.7]} 73... Kg6 {[%clk 0:00:09.8]} 74. Rxh2 {[%clk
0:00:09.5]} 74... Rxc3 {[%clk 0:00:09.9]} 75. Kd4 {[%clk 0:00:10]} 75... Rc2
{[%clk 0:00:10.5]} 76. Ke3 {[%clk 0:00:10.4]} 76... Rxh2 {[%clk 0:00:09.9]} 77.
Kd4 {[%clk 0:00:10.6]} 77... Re2 {[%clk 0:00:10.8]} 78. Ke5 {[%clk 0:00:11.1]}
78... d2 {[%clk 0:00:10.8]} 79. Kd4 {[%clk 0:00:11.4]} 79... d1=Q+ {[%clk
0:00:11.7]} 80. Ke5 {[%clk 0:00:12.3]} 80... Rc2 {[%clk 0:00:11.3]} 81. Ke6
{[%clk 0:00:11.7]} 81... Rc6+ {[%clk 0:00:12.2]} 82. Ke7 {[%clk 0:00:11.9]}
82... Qd6+ {[%clk 0:00:12.6]} 83. Ke8 {[%clk 0:00:12.2]} 83... Rc8# {[%clk
0:00:13]} 0-1

[Event "*** Titled Tuesday Blitz"]
[Site "Chess.com"]
[Date "2021.03.09"]
[Round "4"]
[White "Pelopidass"]
[Black "A-S-00"]
[Result "1/2-1/2"]
[WhiteElo "2566"]
[BlackElo "2401"]
[TimeControl "180+1"]
[EndTime "10:43:46 PST"]
[Termination "Game drawn - insufficient material"]

1. e4 {[%clk 0:03:00.9]} 1... c5 {[%clk 0:02:54.4]} 2. Nf3 {[%clk 0:02:55.7]}
2... Nc6 {[%clk 0:02:53.8]} 3. b3 {[%clk 0:02:45.9]} 3... d5 {[%clk 0:02:36.9]}
4. exd5 {[%clk 0:02:41.3]} 4... Qxd5 {[%clk 0:02:36.3]} 5. Nc3 {[%clk
0:02:41.7]} 5... Qd8 {[%clk 0:02:35.8]} 6. Bb5 {[%clk 0:02:38.8]} 6... Nf6
{[%clk 0:02:34.1]} 7. Bxc6+ {[%clk 0:02:35.3]} 7... bxc6 {[%clk 0:02:33.7]} 8.
O-O {[%clk 0:02:35.9]} 8... Bg4 {[%clk 0:02:29.5]} 9. Qe2 {[%clk 0:02:26.9]}
9... e6 {[%clk 0:02:27.6]} 10. Ne4 {[%clk 0:02:00.5]} 10... Be7 {[%clk
0:02:16.3]} 11. Bb2 {[%clk 0:01:53.3]} 11... O-O {[%clk 0:02:14.4]} 12. Rad1
{[%clk 0:01:44.1]} 12... Nd5 {[%clk 0:01:59.9]} 13. h3 {[%clk 0:01:37.4]} 13...
Bh5 {[%clk 0:01:55]} 14. Ng3 {[%clk 0:01:23.9]} 14... Bg6 {[%clk 0:01:43]} 15.
d3 {[%clk 0:01:20.2]} 15... Bf6 {[%clk 0:01:33.8]} 16. Bxf6 {[%clk 0:00:59.3]}
16... Qxf6 {[%clk 0:01:33.5]} 17. Qe5 {[%clk 0:00:59.7]} 17... Qxe5 {[%clk
0:01:25.4]} 18. Nxe5 {[%clk 0:01:00.6]} 18... Nb4 {[%clk 0:01:23.8]} 19. Rd2
{[%clk 0:00:59.6]} 19... Nxa2 {[%clk 0:01:12]} 20. Nd7 {[%clk 0:00:55.7]} 20...
Rfd8 {[%clk 0:01:09.8]} 21. Nxc5 {[%clk 0:00:56.2]} 21... Nc3 {[%clk 0:01:08.1]}
22. Ra1 {[%clk 0:00:52.9]} 22... e5 {[%clk 0:00:59.6]} 23. Na4 {[%clk
0:00:50.7]} 23... Nd5 {[%clk 0:00:56.3]} 24. Ne2 {[%clk 0:00:43.9]} 24... f6
{[%clk 0:00:53.9]} 25. Nc5 {[%clk 0:00:43]} 25... Bf7 {[%clk 0:00:47.5]} 26. Ra6
{[%clk 0:00:37.8]} 26... Nb4 {[%clk 0:00:45.2]} 27. Ra4 {[%clk 0:00:37.2]} 27...
Nd5 {[%clk 0:00:41.3]} 28. Rd1 {[%clk 0:00:34.3]} 28... Nb6 {[%clk 0:00:30.4]}
29. Ra5 {[%clk 0:00:33.7]} 29... Rdc8 {[%clk 0:00:18.6]} 30. Rda1 {[%clk
0:00:33.9]} 30... Rc7 {[%clk 0:00:18.9]} 31. Nc3 {[%clk 0:00:29.8]} 31... Nd5
{[%clk 0:00:18.3]} 32. N3e4 {[%clk 0:00:26.7]} 32... Kf8 {[%clk 0:00:15.3]} 33.
Nd6 {[%clk 0:00:19]} 33... Ke7 {[%clk 0:00:14.8]} 34. Nc4 {[%clk 0:00:16.3]}
34... Kf8 {[%clk 0:00:13.2]} 35. Kf1 {[%clk 0:00:13.4]} 35... Nf4 {[%clk
0:00:11.8]} 36. Nb6 {[%clk 0:00:10.2]} 36... Rd8 {[%clk 0:00:11.2]} 37. Rxa7
{[%clk 0:00:09.8]} 37... Rxa7 {[%clk 0:00:10.7]} 38. Rxa7 {[%clk 0:00:10.7]}
38... Be6 {[%clk 0:00:10]} 39. Nxe6+ {[%clk 0:00:09]} 39... Nxe6 {[%clk
0:00:10]} 40. b4 {[%clk 0:00:07.8]} 40... Nd4 {[%clk 0:00:09.3]} 41. c3 {[%clk
0:00:06.5]} 41... Nb5 {[%clk 0:00:09.4]} 42. Rd7 {[%clk 0:00:06.5]} 42... Rxd7
{[%clk 0:00:08.1]} 43. Nxd7+ {[%clk 0:00:06.1]} 43... Ke7 {[%clk 0:00:09]} 44.
Nc5 {[%clk 0:00:06.2]} 44... Nxc3 {[%clk 0:00:09.3]} 45. Nb3 {[%clk 0:00:04.7]}
45... Nd5 {[%clk 0:00:09.4]} 46. d4 {[%clk 0:00:05]} 46... Nxb4 {[%clk
0:00:08.9]} 47. dxe5 {[%clk 0:00:05.2]} 47... fxe5 {[%clk 0:00:09.8]} 48. Ke2
{[%clk 0:00:05.8]} 48... Kd6 {[%clk 0:00:10.2]} 49. Ke3 {[%clk 0:00:05.4]} 49...
Kd5 {[%clk 0:00:10.6]} 50. Nd2 {[%clk 0:00:05.6]} 50... c5 {[%clk 0:00:10.4]}
51. Nf3 {[%clk 0:00:05.9]} 51... c4 {[%clk 0:00:10.2]} 52. Kd2 {[%clk
0:00:05.9]} 52... Nc6 {[%clk 0:00:09.6]} 53. Kc3 {[%clk 0:00:05.1]} 53... Nd4
{[%clk 0:00:09.7]} 54. Ng5 {[%clk 0:00:05.4]} 54... Ne2+ {[%clk 0:00:08]} 55.
Kd2 {[%clk 0:00:05.1]} 55... Nf4 {[%clk 0:00:06.4]} 56. g3 {[%clk 0:00:05.5]}
56... Ng6 {[%clk 0:00:05]} 57. Nxh7 {[%clk 0:00:05]} 57... Kd4 {[%clk
0:00:04.7]} 58. Ng5 {[%clk 0:00:05.5]} 58... c3+ {[%clk 0:00:04.6]} 59. Kc2
{[%clk 0:00:06.1]} 59... e4 {[%clk 0:00:04.8]} 60. h4 {[%clk 0:00:05.3]} 60...
Ne5 {[%clk 0:00:04]} 61. Ne6+ {[%clk 0:00:05.4]} 61... Kc4 {[%clk 0:00:03.8]}
62. Nxg7 {[%clk 0:00:06.1]} 62... Ng4 {[%clk 0:00:03.6]} 63. Nf5 {[%clk
0:00:07]} 63... Nxf2 {[%clk 0:00:03.5]} 64. h5 {[%clk 0:00:07.2]} 64... Ng4
{[%clk 0:00:02.5]} 65. h6 {[%clk 0:00:07.6]} 65... Nf6 {[%clk 0:00:02.7]} 66. g4
{[%clk 0:00:06.8]} 66... e3 {[%clk 0:00:03.2]} 67. Nxe3+ {[%clk 0:00:06.9]}
67... Kd4 {[%clk 0:00:03.5]} 68. Nf5+ {[%clk 0:00:07.8]} 68... Kc4 {[%clk
0:00:04.1]} 69. h7 {[%clk 0:00:08.7]} 69... Nxh7 {[%clk 0:00:04.3]} 70. Ne3+
{[%clk 0:00:08.3]} 70... Kd4 {[%clk 0:00:03.5]} 71. Nd1 {[%clk 0:00:08.2]} 71...
Ng5 {[%clk 0:00:02.3]} 72. Nf2 {[%clk 0:00:08.1]} 72... Nf3 {[%clk 0:00:02.1]}
73. Kb3 {[%clk 0:00:06.9]} 73... Ke3 {[%clk 0:00:01.8]} 74. Nd1+ {[%clk
0:00:06.8]} 74... Kf4 {[%clk 0:00:02.2]} 75. Nf2 {[%clk 0:00:06.8]} 75... Kg5
{[%clk 0:00:02.2]} 76. Kxc3 {[%clk 0:00:06.2]} 76... Ne5 {[%clk 0:00:02.6]} 77.
Kd4 {[%clk 0:00:06.6]} 77... Nxg4 {[%clk 0:00:03.5]} 1/2-1/2